bitfinex-derivatives/quotes_BTCF0:USTF0_20250127
["timestamp","ask_amount","ask_price","bid_price","bid_amount"]
[1737939133378,0.556812,102070.0,102060.0,0.02126162]
[1737939133884,0.556812,102070.0,102060.0,0.01726162]
[1737939134080,0.556812,102070.0,102060.0,0.01625494]
[1737939134081,0.77060032,102070.0,102060.0,0.01625494]
[1737939134382,0.556812,102070.0,102060.0,0.01625356]
[1737939134884,1.07060032,102070.0,102060.0,0.00114674]
[1737939135077,0.196089,102030.0,102020.0,0.00010338]
[1737939135280,0.917689,102030.0,102020.0,0.01517457]
[1737939135476,0.917689,102030.0,102020.0,0.01417457]
[1737939136183,0.7216,102030.0,102020.0,0.42407089]
[1737939136387,0.917689,102030.0,102020.0,0.42507089]
[1737939136588,0.917689,102030.0,102020.0,0.43007089]
[1737939136783,0.36094674,102040.0,102030.0,0.196089]
[1737939136979,0.00014674,102040.0,102030.0,0.196089]
[1737939137686,0.00014674,102040.0,102030.0,0.556889]
[1737939138078,0.00014674,102040.0,102030.0,0.196089]
[1737939138279,0.55702174,102040.0,102020.0,0.87648632]
[1737939138583,0.00014674,102040.0,102030.0,0.556889]
[1737939139181,0.00014674,102040.0,102030.0,0.558889]
[1737939139387,0.36094674,102040.0,102030.0,0.198089]
[1737939139593,0.55701674,102040.0,102030.0,0.002]
[1737939140686,0.55701674,102040.0,102030.0,0.198089]
[1737939140892,0.19621674,102040.0,102030.0,0.198089]
[1737939141195,0.00014674,102040.0,102030.0,0.558889]
[1737939141398,0.00014674,102040.0,102030.0,0.198089]
[1737939141596,0.36094674,102040.0,102030.0,0.198089]
[1737939141796,0.00014674,102040.0,102030.0,0.198089]
[1737939142096,0.00014674,102040.0,102030.0,0.196089]
[1737939142284,0.19621674,102040.0,102030.0,0.196089]
[1737939143096,0.55701674,102040.0,102030.0,0.002]
[1737939146097,0.196108,102020.0,102010.0,0.00014674]
[1737939146293,0.917708,102020.0,102010.0,0.00014674]
[1737939148097,0.917708,102020.0,101980.0,0.50156832]
[1737939148098,0.196166,101990.0,101980.0,0.50156832]
[1737939148299,0.196185,101980.0,101970.0,2.62642703]
[1737939148496,0.196185,101980.0,101970.0,2.64058703]
[1737939148700,0.196185,101980.0,101970.0,2.63510997]
[1737939149103,0.556972,101990.0,101970.0,2.43892397]
[1737939149301,0.19631874,101990.0,101970.0,2.48822294]
[1737939149501,0.55711874,101990.0,101970.0,2.68441994]
[1737939149710,0.19631874,101990.0,101980.0,0.40997332]
[1737939150000,0.55711874,101990.0,101980.0,0.40997332]
[1737939150203,0.55711874,101990.0,101980.0,0.01524677]
[1737939151299,0.6956417,101990.0,101980.0,7.7e-07]
[1737939151900,0.6956417,101990.0,101970.0,7.7e-07]
[1737939151901,0.196185,101980.0,101970.0,7.7e-07]
[1737939152104,0.196204,101970.0,101960.0,7.4e-07]
[1737939152309,0.89292696,101970.0,101960.0,7.4e-07]
[1737939152907,1.19292696,101970.0,101960.0,7.4e-07]
[1737939153108,0.89292696,101970.0,101960.0,7.4e-07]
[1737939153311,0.754404,101970.0,101960.0,7.4e-07]
[1737939153615,0.754404,101970.0,101960.0,0.00500074]
[1737939154001,0.754404,101970.0,101960.0,0.00600074]
[1737939154203,0.89292696,101970.0,101960.0,7.4e-07]
[1737939154602,0.96813776,101970.0,101960.0,7.4e-07]
[1737939154901,0.754404,101970.0,101960.0,7.4e-07]
[1737939155501,0.196242,101960.0,101950.0,0.00014674]
[1737939155699,0.557042,101960.0,101950.0,0.19638974]
[1737939155900,0.570008,101970.0,101960.0,0.196223]
[1737939156105,0.3738,101970.0,101960.0,0.196223]
[1737939156305,0.01314674,101970.0,101960.0,0.39383527]
[1737939156604,0.00914674,101970.0,101960.0,0.289623]
[1737939156806,0.55715074,101970.0,101960.0,0.289623]
[1737939157210,0.53507738,101970.0,101960.0,0.31414895]
[1737939157405,0.53507738,101970.0,101960.0,0.11792595]
[1737939158007,0.53507738,101970.0,101960.0,0.31414895]
[1737939158308,0.55699,101980.0,101960.0,0.11792595]
[1737939158509,0.55713674,101980.0,101970.0,0.196204]
[1737939158703,0.55713674,101980.0,101970.0,0.22072859]
[1737939159202,0.55713674,101980.0,101970.0,0.02452459]
[1737939159902,0.53860258,101980.0,101970.0,0.02452459]
[1737939160303,0.54160258,101980.0,101970.0,0.02452459]
[1737939161110,0.196223,101960.0,101950.0,0.10114674]
[1737939161305,0.557023,101960.0,101950.0,0.10114674]
[1737939161511,0.557023,101960.0,101950.0,0.00014674]
[1737939161711,0.917823,101960.0,101950.0,0.00014674]
[1737939162107,0.196261,101950.0,101930.0,0.55142744]
[1737939162306,0.557061,101950.0,101930.0,0.55142744]
[1737939162716,0.557061,101950.0,101930.0,0.50880776]
[1737939163020,0.3608,101950.0,101930.0,0.50880776]
[1737939163209,0.557062,101940.0,101930.0,0.006]
[1737939163411,0.557062,101940.0,101930.0,0.00614674]
[1737939163812,0.55819674,101950.0,101930.0,0.4161615]
[1737939164010,0.55819674,101950.0,101940.0,0.196262]
[1737939164511,0.55819674,101950.0,101930.0,0.5806805]
[1737939164512,0.36194674,101950.0,101930.0,0.7769565]
[1737939164716,0.196262,101940.0,101930.0,0.4161565]
[1737939164914,0.196262,101940.0,101930.0,0.4101565]
[1737939165713,0.196262,101940.0,101930.0,0.00014674]
[1737939165912,0.557062,101940.0,101930.0,0.00014674]
[1737939166910,0.606127,101940.0,101930.0,0.01533788]
[1737939168215,0.36094674,101950.0,101930.0,0.22907164]
[1737939168413,0.557062,101940.0,101930.0,0.01533788]
[1737939168915,0.196281,101930.0,101920.0,0.196299]
[1737939169120,0.557081,101930.0,101920.0,0.19644574]
[1737939169414,0.3608,101930.0,101920.0,0.19644574]
[1737939169719,0.196281,101930.0,101920.0,0.19644574]
[1737939169920,0.196281,101930.0,101920.0,0.21178117]
[1737939170116,0.557081,101930.0,101920.0,0.01848217]
[1737939170320,0.557081,101930.0,101920.0,0.01948217]
[1737939170618,0.3608,101930.0,101920.0,0.21578217]
[1737939170810,0.557068,101940.0,101920.0,0.21578217]
[1737939171011,0.557068,101940.0,101920.0,0.20044674]
[1737939171313,0.557068,101940.0,101930.0,0.196281]
[1737939171715,0.557068,101940.0,101930.0,1.696281]
[1737939172014,0.557068,101940.0,101930.0,1.5]
[1737939172317,0.196281,101930.0,101920.0,0.20044074]
[1737939172713,0.196281,101930.0,101920.0,1.69744074]
[1737939172912,0.196281,101930.0,101920.0,1.69644074]
[1737939173113,0.19358488,101930.0,101920.0,1.69644074]
[1737939173520,0.19358488,101930.0,101920.0,1.69944074]
[1737939173817,0.19358488,101930.0,101920.0,1.70044074]
[1737939174523,0.196265,101940.0,101930.0,0.196278]
[1737939175019,0.557065,101940.0,101930.0,0.61046576]
[1737939175318,0.31017316,101950.0,101930.0,0.61046576]
[1737939175515,0.31017316,101950.0,101940.0,0.33484976]
[1737939176317,0.31017316,101950.0,101940.0,0.41947047]
[1737939176518,0.31017316,101950.0,101940.0,0.33425491]
[1737939176720,0.31317316,101950.0,101940.0,0.04261968]
[1737939177120,0.67397316,101950.0,101940.0,0.08462071]
[1737939177424,0.31317316,101950.0,101940.0,0.08462071]
[1737939177722,0.67397316,101950.0,101940.0,0.04261968]
[1737939178513,0.67397316,101950.0,101920.0,0.70507706]
[1737939178514,0.47872816,101950.0,101920.0,0.55078509]
[1737939178816,0.557081,101930.0,101920.0,0.00014674]
[1737939179022,0.196281,101930.0,101920.0,0.3350345]
[1737939179229,0.196281,101930.0,101920.0,0.37703553]
[1737939179413,0.196281,101930.0,101920.0,0.18073553]
[1737939179614,0.196281,101930.0,101920.0,0.18173553]
[1737939179914,0.196281,101930.0,101920.0,0.1427345]
[1737939180317,0.196281,101930.0,101920.0,0.3390345]
[1737939180517,0.196281,101930.0,101920.0,0.1427345]
[1737939182319,0.14265646,101950.0,101920.0,1.72371]
[1737939182523,0.14265646,101950.0,101940.0,0.69564976]
[1737939182722,0.14265646,101950.0,101940.0,0.73765079]
[1737939182921,0.16978915,101960.0,101950.0,0.196243]
[1737939183126,0.19886291,101980.0,101970.0,0.196204]
[1737939183333,0.19886291,101980.0,101970.0,0.33479176]
[1737939183622,0.19886291,101980.0,101970.0,1.87679279]
[1737939183828,0.19886291,101980.0,101970.0,1.83479176]
[1737939184517,0.49436657,101990.0,101980.0,0.196185]
[1737939184721,0.64747292,102020.0,101980.0,0.67997655]
[1737939185023,0.196146,102000.0,101990.0,0.43524976]
[1737939185225,0.3608,102010.0,101990.0,0.296662]
[1737939185226,0.55693,102010.0,101990.0,0.296662]
[1737939185418,0.55693,102010.0,101990.0,0.1005]
[1737939185419,0.556946,102000.0,101990.0,0.1005]
[1737939185729,0.556946,102000.0,101980.0,0.647882]
[1737939186020,0.3608,102000.0,101990.0,0.33475376]
[1737939186221,0.3608,102000.0,101990.0,0.35002191]
[1737939186424,0.36194674,102010.0,102000.0,0.196146]
[1737939186620,0.00114674,102010.0,102000.0,0.21141415]
[1737939187127,0.00014674,102010.0,102000.0,0.21141415]
[1737939187318,0.19627374,102010.0,102000.0,0.196146]
[1737939187519,0.00014674,102010.0,102000.0,0.196146]
[1737939188427,0.00014674,102010.0,102000.0,0.69553376]
[1737939188725,0.11372051,102020.0,102010.0,0.196127]
[1737939188930,0.3608,102050.0,102010.0,0.63961876]
[1737939189225,0.556852,102050.0,102030.0,0.196083]
[1737939189418,0.3608,102050.0,102040.0,0.196069]
[1737939190019,0.34496197,102050.0,102040.0,0.196069]
[1737939190326,0.34496197,102050.0,102040.0,0.2112981]
[1737939190527,0.36094674,102060.0,102040.0,0.34988586]
[1737939191030,0.36094674,102060.0,102040.0,0.2112981]
[1737939191031,0.55697874,102060.0,102040.0,0.2112981]
[1737939191326,0.55697874,102060.0,102040.0,0.196069]
[1737939191518,0.55697874,102060.0,102040.0,0.2056825]
[1737939191718,0.196069,102040.0,102030.0,1.86094674]
[1737939191917,0.556869,102040.0,102030.0,0.00014674]
[1737939192124,0.196069,102040.0,102030.0,0.00014674]
[1737939192325,0.556869,102040.0,102030.0,0.00014674]
[1737939193127,0.196069,102040.0,102030.0,0.00014674]
[1737939193319,0.556853,102050.0,102030.0,0.34990524]
[1737939193519,0.556853,102050.0,102040.0,0.13858776]
[1737939193722,0.3608,102050.0,102040.0,0.34974121]
[1737939193923,0.36094674,102060.0,102040.0,0.34974121]
[1737939194317,0.00014674,102060.0,102040.0,2.21054121]
[1737939194518,0.00014674,102060.0,102050.0,0.33463776]
[1737939194719,0.00014674,102060.0,102050.0,0.34972121]
[1737939195216,0.3608,102070.0,102050.0,0.45422055]
[1737939195421,0.3608,102070.0,102050.0,0.45420656]
[1737939195617,0.3608,102070.0,102050.0,0.25815656]
[1737939195921,0.84346792,102080.0,102060.0,0.33461876]
[1737939196125,0.64747292,102080.0,102070.0,0.196012]
[1737939196315,0.64747292,102080.0,102070.0,0.33459976]
[1737939196519,0.002,102070.0,102060.0,0.00014674]
[1737939196718,0.002,102070.0,102060.0,0.3347655]
[1737939197321,0.64747292,102080.0,102060.0,0.3347655]
[1737939197524,0.84277179,102080.0,102060.0,0.3347655]
[1737939198414,0.64677679,102080.0,102070.0,0.33459976]
[1737939198615,0.65477679,102080.0,102070.0,0.33459976]
[1737939198819,0.29397679,102080.0,102070.0,0.44056341]
[1737939199014,0.29197679,102080.0,102070.0,0.44056341]
[1737939199217,0.28397679,102080.0,102070.0,0.80136341]
[1737939199431,0.29197679,102080.0,102070.0,0.80136341]
[1737939199924,0.29397679,102080.0,102070.0,2.30136341]
[1737939200124,0.01,102080.0,102070.0,2.30136341]
[1737939200422,0.01,102080.0,102070.0,1.83459976]
[1737939200929,0.01,102080.0,102070.0,0.33459976]
[1737939201128,0.01,102080.0,102070.0,0.80892782]
[1737939201338,0.01,102080.0,102070.0,2.30892782]
[1737939201624,0.31548696,102090.0,102080.0,0.195993]
[1737939201925,0.31548696,102090.0,102080.0,0.83396852]
[1737939202128,0.08146586,102100.0,102080.0,0.74838627]
[1737939202321,0.08146586,102100.0,102090.0,0.33456076]
[1737939202520,0.08146586,102100.0,102090.0,0.69536076]
[1737939203624,0.08146586,102100.0,102090.0,0.80145671]
[1737939203819,0.08746586,102100.0,102090.0,0.80145671]
[1737939204033,0.08946586,102100.0,102090.0,0.80145671]
[1737939205330,0.64621986,102100.0,102080.0,0.79690263]
[1737939205530,0.28541986,102100.0,102090.0,0.13858776]
[1737939205934,0.28541986,102100.0,102090.0,0.33456076]
[1737939206130,0.08946586,102100.0,102090.0,0.80408868]
[1737939206521,0.08746586,102100.0,102090.0,0.80408868]
[1737939208032,0.08146586,102100.0,102090.0,0.80608868]
[1737939208426,0.08146586,102100.0,102090.0,0.82120409]
[1737939208927,0.27741986,102100.0,102090.0,0.26443109]
[1737939209123,0.27741986,102100.0,102090.0,0.35167717]
[1737939209320,0.25888571,102100.0,102090.0,0.35167717]
[1737939209525,0.06293171,102100.0,102090.0,0.71247717]
[1737939209726,0.06293171,102100.0,102090.0,0.81928426]
[1737939210127,0.06293171,102100.0,102090.0,0.71247717]
[1737939210427,0.06293171,102100.0,102090.0,0.71047717]
[1737939210626,0.06293171,102100.0,102090.0,0.35067717]
[1737939210833,0.06293171,102100.0,102090.0,0.71147717]
[1737939211231,0.06293171,102100.0,102090.0,2.21147717]
[1737939212130,0.294716,102120.0,102110.0,0.195935]
[1737939212330,0.294716,102120.0,102110.0,0.34963817]
[1737939213230,0.5567,102130.0,102110.0,0.35063817]
[1737939213440,0.1959,102130.0,102120.0,0.13858776]
[1737939213636,0.1959,102130.0,102120.0,0.34961917]
[1737939213835,0.1959,102130.0,102120.0,0.3916202]
[1737939214335,0.16529178,102130.0,102120.0,0.71041917]
[1737939214534,0.16529178,102130.0,102120.0,0.69530376]
[1737939215038,0.748282,102140.0,102120.0,0.69530376]
[1737939215238,0.748282,102140.0,102130.0,0.13858776]
[1737939215826,0.72974784,102140.0,102130.0,0.13858776]
[1737939216036,0.647782,102140.0,102130.0,0.33448476]
[1737939217034,0.647782,102140.0,102130.0,0.13858776]
[1737939217235,0.648782,102140.0,102130.0,0.13858776]
[1737939217938,0.648782,102140.0,102130.0,0.33448476]
[1737939218140,0.3608,102160.0,102130.0,0.7397941]
[1737939218342,0.28072929,102170.0,102150.0,1.05603576]
[1737939218639,0.28072929,102170.0,102160.0,0.49938776]
[1737939219142,0.28072929,102170.0,102160.0,0.13858776]
[1737939219347,0.195839,102160.0,102150.0,0.1387345]
[1737939219939,0.287439,102160.0,102150.0,0.00014674]
[1737939220333,0.473039,102160.0,102150.0,0.00014674]
[1737939220639,0.473039,102160.0,102150.0,0.1387345]
[1737939220841,0.195839,102160.0,102150.0,0.4995345]
[1737939221141,0.195839,102160.0,102150.0,0.6953925]
[1737939222641,0.17730485,102160.0,102150.0,0.6953925]
[1737939223146,0.08490129,102170.0,102150.0,0.4995345]
[1737939223335,0.08490129,102170.0,102160.0,0.13858776]
[1737939223336,0.28072129,102170.0,102160.0,0.13858776]
[1737939225848,0.195839,102160.0,102150.0,0.1387345]
[1737939226342,0.195839,102160.0,102150.0,0.13858776]
[1737939226542,0.195839,102160.0,102150.0,0.33444576]
[1737939226736,0.195839,102160.0,102150.0,0.69524576]
[1737939227535,0.195839,102160.0,102150.0,0.49938776]
[1737939228043,0.195839,102160.0,102150.0,0.13858776]
[1737939228640,0.195839,102160.0,102150.0,0.49938776]
[1737939229237,0.195839,102160.0,102150.0,0.69524576]
[1737939230250,0.195839,102160.0,102150.0,2.19524576]
[1737939230544,0.195839,102160.0,102150.0,0.49938776]
[1737939230747,0.195839,102160.0,102150.0,0.3608]
[1737939230942,0.195858,102150.0,102140.0,0.00014674]
[1737939231147,0.195858,102150.0,102120.0,0.3608]
[1737939231148,0.503264,102150.0,102120.0,0.3608]
[1737939231448,0.195916,102120.0,102110.0,0.13858776]
[1737939231637,0.195935,102110.0,102100.0,0.37053282]
[1737939231942,0.195935,102110.0,102090.0,0.71160319]
[1737939231943,0.49938776,102110.0,102090.0,0.71160319]
[1737939232144,0.651954,102100.0,102090.0,0.35080319]
[1737939232451,0.651954,102100.0,102090.0,0.35094993]
[1737939232649,0.196012,102070.0,102060.0,0.77007039]
[1737939232850,0.196012,102070.0,102060.0,0.90865815]
[1737939233145,0.19610856,102070.0,102060.0,0.90865815]
[1737939233945,0.196012,102070.0,102060.0,0.77945609]
[1737939234147,0.196012,102070.0,102060.0,0.78845609]
[1737939234450,0.196012,102070.0,102060.0,0.41827039]
[1737939234840,0.196012,102070.0,102060.0,0.009]
[1737939235351,0.196012,102070.0,102060.0,0.014]
[1737939235538,0.556812,102070.0,102060.0,0.014]
[1737939235940,0.3608,102070.0,102050.0,0.00014674]
[1737939236146,0.556831,102060.0,102050.0,0.00014674]
[1737939236850,0.55693065,102060.0,102050.0,0.00014674]
[1737939237151,0.556831,102060.0,102050.0,0.00014674]
[1737939237446,0.558831,102060.0,102050.0,0.00014674]
[1737939238345,0.198031,102060.0,102050.0,0.00014674]
[1737939238549,0.558831,102060.0,102050.0,0.00014674]
[1737939239048,0.198031,102060.0,102050.0,0.00014674]
[1737939239239,0.199031,102060.0,102050.0,0.00014674]
[1737939239439,0.559831,102060.0,102050.0,0.00014674]
[1737939240747,0.69841876,102060.0,102050.0,0.00014674]
[1737939240954,0.80238776,102060.0,102020.0,0.3608]
[1737939241142,0.196127,102010.0,102000.0,0.46091975]
[1737939241350,0.69551476,102010.0,102000.0,0.10011975]
[1737939241545,0.196166,101990.0,101980.0,0.23371548]
[1737939242250,0.556966,101990.0,101980.0,0.23371548]
[1737939242549,0.69555376,101990.0,101980.0,0.23371548]
[1737939242853,0.556966,101990.0,101980.0,0.23371548]
[1737939243054,0.556966,101990.0,101980.0,0.23671548]
[1737939243253,0.69555376,101990.0,101980.0,0.23671548]
[1737939243453,0.69555376,101990.0,101980.0,0.003]
[1737939244049,0.556966,101990.0,101980.0,0.004]
[1737939244243,0.69555376,101990.0,101980.0,0.004]
[1737939244849,0.69567571,101990.0,101980.0,0.004]
[1737939245054,0.196166,101990.0,101980.0,0.14258776]
[1737939245257,0.19625103,101990.0,101980.0,0.14258776]
[1737939245452,0.19625103,101990.0,101980.0,0.004]
[1737939245653,0.69555376,101990.0,101980.0,0.004]
[1737939246157,0.99565417,101990.0,101980.0,0.004]
[1737939246360,0.99555376,101990.0,101980.0,0.004]
[1737939246555,0.556966,101990.0,101980.0,0.004]
[1737939247059,0.69555376,101990.0,101980.0,0.004]
[1737939247357,0.556966,101990.0,101980.0,0.004]
[1737939248150,0.196166,101990.0,101980.0,0.004]
[1737939249046,0.19625707,101990.0,101980.0,0.004]
[1737939249251,0.196166,101990.0,101980.0,0.004]
[1737939249855,0.19626222,101990.0,101980.0,1.504]
[1737939250056,0.69565018,101990.0,101980.0,1.504]
[1737939250253,0.69555376,101990.0,101980.0,0.004]
[1737939250453,0.49938776,101990.0,101940.0,7.4e-07]
[1737939250759,0.49938776,101990.0,101910.0,0.09572096]
[1737939250760,0.1963,101920.0,101910.0,0.09572096]
[1737939251056,0.69568776,101920.0,101910.0,0.09572096]
[1737939251263,0.1963,101920.0,101910.0,0.09572096]
[1737939251465,0.5571,101920.0,101910.0,0.09572096]
[1737939251652,0.1963,101920.0,101910.0,0.09572096]
[1737939251953,0.19642145,101920.0,101910.0,0.45652096]
[1737939252155,0.19642145,101920.0,101910.0,0.11105908]
[1737939253254,0.19742145,101920.0,101910.0,0.11705908]
[1737939253662,0.19742145,101920.0,101910.0,0.47785908]
[1737939253849,0.00112145,101920.0,101910.0,0.81276684]
[1737939254152,0.00112145,101920.0,101910.0,0.82789534]
[1737939254356,0.196247,101950.0,101910.0,0.79295374]
[1737939254552,0.3608,101970.0,101940.0,0.49938776]
[1737939254753,0.196228,101960.0,101950.0,0.3608]
[1737939254957,0.196212,101970.0,101950.0,0.71075626]
[1737939255158,0.196212,101970.0,101950.0,0.45025626]
[1737939255354,0.00010873,101960.0,101950.0,0.6724685]
[1737939255553,0.00010873,101960.0,101950.0,0.81105626]
[1737939255753,0.00010873,101960.0,101950.0,0.811203]
[1737939255948,0.00610873,101960.0,101950.0,0.812203]
[1737939256161,0.20233173,101960.0,101950.0,0.47737524]
[1737939256564,0.20233173,101960.0,101950.0,0.67361824]
[1737939256761,0.00610873,101960.0,101950.0,0.67361824]
[1737939257664,0.00610873,101960.0,101950.0,0.68237524]
[1737939257965,0.70361076,101960.0,101950.0,0.11657524]
[1737939258162,0.565023,101960.0,101950.0,0.11657524]
[1737939258356,0.56513139,101960.0,101950.0,0.01627524]
[1737939258560,0.70369214,101960.0,101950.0,0.01627524]
[1737939258861,0.70361076,101960.0,101950.0,0.01627524]
[1737939259161,0.565023,101960.0,101950.0,0.03160765]
[1737939259359,0.70361076,101960.0,101950.0,0.03160765]
[1737939260067,0.204223,101960.0,101950.0,0.03160765]
[1737939260369,0.565023,101960.0,101950.0,0.03160765]
[1737939260659,0.70361076,101960.0,101950.0,0.03160765]
[1737939260865,0.565023,101960.0,101950.0,0.03160765]
[1737939261369,0.204223,101960.0,101950.0,0.03160765]
[1737939261561,0.2039573,101960.0,101950.0,0.03160765]
[1737939262156,0.2039573,101960.0,101950.0,0.01627524]
[1737939262157,0.70334506,101960.0,101950.0,0.01627524]
[1737939262557,0.94570982,101960.0,101920.0,0.557096]
[1737939262762,0.196281,101930.0,101920.0,0.557096]
[1737939262956,0.196281,101930.0,101920.0,0.60001741]
[1737939263162,0.69566876,101930.0,101920.0,0.04292141]
[1737939263359,0.557081,101930.0,101920.0,0.04292141]
[1737939263566,0.196281,101940.0,101930.0,0.196281]
[1737939263867,0.196281,101940.0,101930.0,0.557081]
[1737939263868,0.19654235,101940.0,101930.0,0.557081]
[1737939264260,0.00026135,101940.0,101930.0,0.557081]
[1737939264460,0.00026135,101940.0,101930.0,2.19566876]
[1737939264669,0.00026135,101940.0,101930.0,2.07241756]
[1737939265163,0.00026135,101940.0,101930.0,0.57241756]
[1737939265564,0.00026135,101940.0,101930.0,0.71100532]
[1737939266570,0.196228,101960.0,101950.0,0.196241]
[1737939266767,0.196228,101960.0,101950.0,0.69562876]
[1737939267273,0.196228,101960.0,101950.0,2.19562876]
[1737939267463,0.196228,101960.0,101950.0,0.557041]
[1737939267860,0.196228,101960.0,101950.0,0.69562876]
[1737939268061,0.198228,101960.0,101950.0,1.05642876]
[1737939268264,0.198228,101960.0,101950.0,1.09935017]
[1737939268472,0.008,101960.0,101950.0,1.10035017]
[1737939268675,0.008,101960.0,101950.0,1.05742876]
[1737939269465,0.008,101960.0,101950.0,1.10035017]
[1737939269661,0.008,101960.0,101950.0,1.24288419]
[1737939270062,0.19635974,101970.0,101960.0,0.196223]
[1737939270063,0.00014674,101970.0,101960.0,0.196223]
[1737939270269,0.196192,101980.0,101960.0,0.73794478]
[1737939270466,0.196192,101980.0,101970.0,0.49938776]
[1737939270672,0.196192,101980.0,101970.0,0.73792578]
[1737939270865,0.196192,101980.0,101970.0,0.69559176]
[1737939271874,0.196192,101980.0,101970.0,0.59992541]
[1737939272180,0.28122103,101990.0,101970.0,0.73851317]
[1737939272481,0.26495257,101990.0,101970.0,0.69559176]
[1737939272869,0.26495257,101990.0,101980.0,0.69557276]
[1737939273177,0.26495257,101990.0,101980.0,0.73790678]
[1737939273766,0.06977957,101990.0,101980.0,0.73790678]
[1737939273981,0.06977957,101990.0,101980.0,0.88232819]
[1737939274370,0.06977957,101990.0,101980.0,0.99042819]
[1737939274674,0.3084362,102000.0,101990.0,0.196166]
[1737939274675,0.1122822,102000.0,101990.0,0.196166]
[1737939274881,0.1122822,102000.0,101980.0,0.69103551]
[1737939274882,0.3084382,102000.0,101980.0,0.69103551]
[1737939275084,0.3084382,102000.0,101980.0,0.94809417]
[1737939275085,0.002,101990.0,101980.0,0.94809417]
[1737939275375,0.1122822,102000.0,101990.0,0.196166]
[1737939275571,0.1122822,102000.0,101990.0,0.73788778]
[1737939275773,0.19613,102010.0,101990.0,0.73788778]
[1737939275973,0.19627674,102010.0,102000.0,0.69553376]
[1737939276182,0.00014674,102010.0,102000.0,0.73786778]
[1737939276683,0.00014674,102010.0,102000.0,0.69553376]
[1737939276978,0.25427197,102020.0,102010.0,0.33471476]
[1737939277277,0.25427197,102020.0,102010.0,0.75302356]
[1737939277475,0.25427197,102020.0,102010.0,0.85797977]
[1737939278072,0.25427197,102020.0,102010.0,0.85801858]
[1737939278477,0.25427197,102020.0,102010.0,0.92228456]
[1737939279075,0.25427197,102020.0,102010.0,0.92328456]
[1737939279989,0.62056147,102050.0,102030.0,0.196073]
[1737939280185,0.196055,102050.0,102040.0,0.49938776]
[1737939280382,0.196055,102050.0,102040.0,0.01521359]
[1737939280588,0.69544276,102050.0,102040.0,0.01521359]
[1737939281086,0.69844276,102050.0,102040.0,0.01521359]
[1737939281873,0.69844276,102050.0,102040.0,0.01621359]
[1737939281874,0.70344276,102050.0,102040.0,0.01621359]
[1737939282079,0.70344276,102050.0,102040.0,0.001]
[1737939282279,1.06424276,102050.0,102040.0,0.001]
[1737939283279,1.06524276,102050.0,102040.0,0.001]
[1737939283682,0.196127,102010.0,102000.0,0.76703099]
[1737939284679,0.196127,102010.0,102000.0,0.30163099]
[1737939284887,0.196146,102000.0,101990.0,0.303261]
[1737939285079,0.196146,102000.0,101990.0,0.30340774]
[1737939285495,0.196146,102000.0,101990.0,0.10724674]
[1737939285676,0.196146,102000.0,101990.0,0.31090331]
[1737939286075,0.196146,102000.0,101990.0,0.31790331]
[1737939286479,0.19613,102010.0,102000.0,0.196134]
[1737939286676,0.19613,102010.0,102000.0,0.556934]
[1737939286895,0.19626174,102020.0,102010.0,0.196127]
[1737939287079,0.196127,102010.0,102000.0,0.196143]
[1737939287389,0.196127,102010.0,102000.0,0.556943]
[1737939287591,0.196127,102010.0,102000.0,0.557943]
[1737939287888,0.196127,102010.0,102000.0,2.19653076]
[1737939288489,0.19626274,102020.0,102000.0,2.19653076]
[1737939288687,0.00014674,102020.0,102010.0,0.69551476]
[1737939288887,0.00014674,102020.0,102010.0,0.4651]
[1737939288888,0.19625474,102020.0,102010.0,0.4651]
[1737939289089,0.19625474,102020.0,102010.0,0.11946432]
[1737939289682,0.19625474,102020.0,102010.0,0.01516432]
[1737939289884,0.6956425,102020.0,102010.0,0.01516432]
[1737939290291,0.8021425,102020.0,102010.0,0.01516432]
[1737939291398,0.8021425,102020.0,102010.0,0.01616432]
[1737939291590,0.196146,102000.0,101990.0,0.00014674]
[1737939291792,0.196166,101990.0,101980.0,0.17316092]
[1737939292093,0.196185,101980.0,101970.0,0.12316448]
[1737939292288,0.196204,101970.0,101960.0,0.28922143]
[1737939292488,0.80319176,101970.0,101960.0,0.28922143]
[1737939292687,0.90129176,101970.0,101960.0,0.28922143]
[1737939294296,0.90129176,101970.0,101960.0,0.30455416]
[1737939295094,0.90129176,101970.0,101960.0,0.30555416]
[1737939295594,0.762704,101970.0,101960.0,0.30555416]
[1737939296096,0.762704,101970.0,101960.0,0.01633273]
[1737939296400,0.90129176,101970.0,101960.0,0.01633273]
[1737939296599,0.196281,101930.0,101920.0,0.40372141]
[1737939297095,0.196281,101930.0,101920.0,0.04292141]
[1737939297404,0.3608,101940.0,101910.0,0.6997165]
[1737939297694,0.1963,101920.0,101910.0,0.6997165]
[1737939297990,0.1963,101920.0,101910.0,0.69986324]
[1737939298194,0.1963,101920.0,101910.0,0.65694183]
[1737939298386,0.001,101930.0,101910.0,0.65694183]
[1737939298387,0.197289,101930.0,101920.0,0.1963]
[1737939298583,0.197289,101930.0,101920.0,0.69568776]
[1737939298783,0.197289,101930.0,101920.0,0.69968776]
[1737939298784,0.196289,101930.0,101920.0,0.69968776]
[1737939299690,0.196289,101930.0,101920.0,0.69668776]
[1737939299890,0.19641274,101940.0,101920.0,0.50038776]
[1737939300091,0.196252,101950.0,101930.0,0.69566876]
[1737939300290,0.196252,101950.0,101940.0,0.80184976]
[1737939300491,0.196252,101950.0,101940.0,0.1062]
[1737939300698,0.557052,101950.0,101940.0,0.1062]
[1737939300990,0.196262,101940.0,101930.0,0.79486676]
[1737939301191,0.196251,101950.0,101930.0,0.90106676]
[1737939301391,0.196262,101940.0,101930.0,0.7049345]
[1737939301695,0.198252,101950.0,101930.0,0.9012075]
[1737939301886,0.198252,101950.0,101940.0,0.3608]
[1737939302194,0.196262,101940.0,101930.0,0.00014674]
[1737939302391,0.69564976,101940.0,101930.0,0.00114674]
[1737939302789,0.196262,101940.0,101930.0,0.00114674]
[1737939302989,0.557062,101940.0,101930.0,0.00114674]
[1737939303588,0.196262,101940.0,101930.0,0.00114674]
[1737939303999,0.196249,101950.0,101940.0,0.196262]
[1737939304201,0.196249,101950.0,101940.0,0.69564976]
[1737939304492,0.196249,101950.0,101940.0,2.057062]
[1737939304690,0.196249,101950.0,101940.0,0.557062]
[1737939305191,0.196249,101950.0,101940.0,0.57222746]
[1737939305398,0.196249,101950.0,101940.0,0.21142746]
[1737939305702,0.002,101950.0,101940.0,0.71081522]
[1737939305899,0.002,101950.0,101940.0,0.81741522]
[1737939306087,0.199243,101950.0,101940.0,0.80224976]